Cogmind - Beta 15 @@@ ROGUE MODE // 2025.06.18 @ 18:07:01 Player: Mindcool24 Result: Destroyed by G-47 Trooper with Particle Gun Performance ------------- Evolutions (2) 1000 Regions Visited (5) 1000 Robots Destroyed (38) 190 Value Destroyed (1384) 1384 Prototype IDs (2) 40 Alien Tech Used (0) 0 Bonus (0) 0 TOTAL SCORE: 3614 Bonus ------- None Cogmind --------- Core Integrity 0/550 Matter 76/300 Energy 100/100 System Corruption 5% Temperature Cool (9) Movement Walking (260) Ox2 Location -8/Storage Parts ------- > --- POWER (2) -------- (None) > --- PROPULSION (3) --- Aluminum Leg > --- UTILITY (3) ------ Improved Heat Sink Large Storage Unit Hacking Suite > --- WEAPON (3) ------- (None) > --- INVENTORY (15) --- Small Storage Unit Core Shielding Propulsion Shielding Improved Light Armor Plating Peak State ------------ > --- POWER ------------ Light Nuclear Core > --- PROPULSION ------- Light Treads Light Treads Light Treads > --- UTILITY ---------- Large Storage Unit Core Shielding Hacking Suite > --- WEAPON ----------- Advanced Beam Rifle Assault Cannon Enhanced Flamer > --- INVENTORY -------- Improved Heat Sink Small Storage Unit Propulsion Shielding Improved Light Armor Plating Small Laser Improved Light Cannon Flak Cannon Grenade Launcher Rocket Launcher [Rating: 22] Favorites ----------- Power Ion Engine Engine Ion Engine Power Core Light Nuclear Core Propulsion Light Treads Treads Light Treads Leg Aluminum Leg Utility Large Storage Unit Device Cooling System Storage Large Storage Unit Hackware Hacking Suite Protection Core Shielding Weapon Heavy Assault Rifle Energy Gun EM Pulse Gun Ballistic Gun Heavy Assault Rifle Ballistic Cannon Improved Light Cannon Launcher Grenade Launcher Special Weapon Enhanced Flamer Special Melee Weapon Datajack Build | -11 -10 -9 -9 -8 -8 ------- Run | Yrd Mat Mat Min Mat Sto Slots Evolved 4 | . . 2 . 2 . Power 1 | . . . . 1 . Propulsion 1 | . . . . 1 . Utility 1 | . . 1 . . . Weapon 1 | . . 1 . . . Parts Attached 38 | 6 2 6 . 24 . Power 5 | 1 . . . 4 . Engine 4 | 1 . . . 3 . Core 1 | . . . . 1 . Reactor . | . . . . . . Propulsion 9 | 2 . . . 7 . Treads 7 | 2 . . . 5 . Leg 2 | . . . . 2 . Wheel . | . . . . . . Hover . | . . . . . . Flight . | . . . . . . Utility 8 | 1 2 2 . 3 . Device 2 | . . 1 . 1 . Storage 2 | 1 1 . . . . Processor . | . . . . . . Hackware 1 | . . 1 . . . Protection 3 | . 1 . . 2 . Artifact . | . . . . . . Weapon 16 | 2 . 4 . 10 . Energy Gun 3 | . . 1 . 2 . Energy Cannon . | . . . . . . Ballistic Gun 5 | 2 . 2 . 1 . Ballistic Cannon 4 | . . 1 . 3 . Launcher 2 | . . . . 2 . Special Weapon 1 | . . . . 1 . Impact Weapon . | . . . . . . Slashing Weapon . | . . . . . . Piercing Weapon . | . . . . . . Special Melee Weapon 1 | . . . . 1 . Unidentified Prototypes 1 | . . . . 1 . Parts Lost 23 | . . 1 . 19 3 Power 5 | . . . . 4 1 Propulsion 8 | . . . . 7 1 Utility 3 | . . . . 3 . Weapon 7 | . . 1 . 5 1 Highest Loss Streak 7 | . . 1 . 7 3 To Critical Strikes . | . . . . . . Average Backups 9 | 2 4 11 13 9 4 Power 1 | 1 1 2 2 . . Propulsion 1 | . . 2 4 . . Utility 2 | . . 2 3 3 4 Weapon 3 | . 2 4 4 4 . Tool/Special . | . . . . . . Unused Backups 7 | . . 5 . . 2 Power 2 | . . 2 . . . Propulsion 1 | . . 1 . . . Utility 2 | . . . . . 2 Weapon 2 | . . 2 . . . Tool/Special . | . . . . . . Average Slot Usage (%) 89 | . 87 97 100 78 60 Engine 10 | . 12 11 11 7 8 Treads 20 | . 26 21 22 18 . Leg 1 | . . . . 1 18 Device 7 | . . 10 11 3 9 Storage 10 | . 14 11 11 9 9 Hackware 8 | . . 10 11 9 9 Protection 2 | . 6 . . 3 . Energy Gun 2 | . . 9 . 1 . Ballistic Gun 16 | . 26 21 22 7 . Ballistic Cannon 6 | . . . 11 10 . Peak Build Rating 22 | 6 8 16 16 22 12 Average Rating 13 | 3 6 13 16 15 11 On Entrance 9 | . 6 8 16 16 12 Naked Turns . | . . . . . . Heaviest Build 41 | 13 29 37 37 41 29 Greatest Support 60 | 40 40 40 40 60 20 Greatest Overweight (x) 8 | . 1 1 . 8 1 Average Overweight (x) . | . . . . . 1 Largest Inventory Capacity 15 | 8 15 15 15 15 15 Average Capacity 14 | 7 11 15 15 15 15 Most Carried 15 | 4 8 15 14 14 4 Average Carried 9 | 2 4 12 13 9 4 Final Capacity 15 | 8 15 15 15 15 15 Final Carried 14 | 2 8 12 14 4 4 Class Distribution -------------------- 48% | Gunner 20% | Mutant 14% | Scavenger-Mutant 8% | Scavenger-Gunner 8% | Scavenger-Tank Dominant Class ---------------- Mutant | -10/Materials Gunner | -9/Materials Gunner | -9/Mines Scavenger-Mutant | -8/Materials Scavenger-Mutant | -8/Storage Resources | -11 -10 -9 -9 -8 -8 ----------- Run | Yrd Mat Mat Min Mat Sto Matter Collected 1065 | 137 91 310 153 374 . Remotely . | . . . . . . Salvage Created 1280 | . 91 578 122 489 . Parts 80 | . 4 48 8 20 . Haulers Intercepted . | . . . . . . Recyclers Shooed 3 | . . 1 . 2 . Parts Field Recycled . | . . . . . . Retrieved Matter . | . . . . . . Parts Self-Destructed . | . . . . . . Prevented . | . . . . . . Kills | -11 -10 -9 -9 -8 -8 ------- Run | Yrd Mat Mat Min Mat Sto Combat Hostiles Destroyed 35 | . 2 12 5 16 . Guns 22 | . 2 12 4 4 . Cannons 10 | . . . 1 9 . AOE 3 | . . . . 3 . Classes Destroyed 8 | . 1 5 . 2 . Worker 1 | . . . . 1 . Operator 1 | . . 1 . . . Watcher 1 | . . 1 . . . Swarmer 5 | . . 2 3 . . Grunt 20 | . 2 5 1 12 . Brawler 2 | . . 1 1 . . Duelist 2 | . . . . 2 . Sentry 6 | . . 4 . 2 . Best Kill Streak 4 | . 2 3 3 4 . Combat Bots Only 3 | . 2 3 3 3 . Max Kills in Single Turn 2 | . 1 1 1 2 . Gunslinging . | . . . . . . Exploded 2 | . . . . 2 . Melee . | . . . . . . Uniques/NPCs Destroyed . | . . . . . . Combat | -11 -10 -9 -9 -8 -8 -------- Run | Yrd Mat Mat Min Mat Sto Hostile Shots Fired 288 | . 6 50 26 173 33 Missed 84 | . 1 18 12 46 7 Hits 204 | . 5 32 14 127 26 Melee 11 | . . . . 11 . Projectile 193 | . 5 32 14 116 26 Critical Strikes 16 | . . . 1 13 2 Actively Blocked 1 | . . . . 1 . Damage Taken 3372 | . 56 426 131 2369 390 Core 665 | . . 83 27 453 102 Absorbed by Shields . | . . . . . . Redirected to Shielding 37 | . 6 . . 31 . Regen/Repaired (Parts) 87 | . . 87 . . . Core Remaining (%) 90 | 100 100 . 72 . . Volleys Fired 113 | . 8 34 13 58 . Largest 3 | . 2 3 3 3 . Hottest 154 | . 40 83 79 154 . Shots Fired 286 | . 16 98 39 133 . Gun 194 | . 16 98 26 54 . Cannon 73 | . . . 13 60 . Launcher 8 | . . . . 8 . Special 11 | . . . . 11 . Kinetic 232 | . 16 68 39 109 . Thermal 16 | . . . . 16 . Explosive 8 | . . . . 8 . Electromagnetic 30 | . . 30 . . . Robot Hit Streak 12 | . 3 12 9 12 . Robot Miss Streak 7 | . 2 5 3 7 . Penetration Max . | . . . . . . Secondary Targets 2 | . . 2 . . . Max Gunslinging Chain 1 | . . 1 . . . Shots Hit Robots 169 | . 8 52 24 85 . Core Hits 79 | . 3 26 5 43 2 Critical Kills . | . . . . . . Critical Parts Destroyed . | . . . . . . Critical Strikes 3 | . . . . 3 . Blast 3 | . . . . 3 . Melee Attacks . | . . . . . . Impact . | . . . . . . Slashing . | . . . . . . Piercing . | . . . . . . Sneak Attacks . | . . . . . . Combat Hostiles . | . . . . . . Follow-up Attacks . | . . . . . . Damage Inflicted 3227 | . 99 629 415 2061 23 Guns 1451 | . 95 629 287 440 . Cannons 1096 | . . . 128 968 . Explosions 573 | . . . . 573 . Melee . | . . . . . . Ramming 41 | . 4 . . 14 23 Kinetic 2266 | . 95 359 415 1397 . Thermal 77 | . . . . 77 . Explosive 573 | . . . . 573 . Electromagnetic 270 | . . 270 . . . Impact . | . . . . . . Slashing . | . . . . . . Piercing . | . . . . . . Highest Corruption 5 | . 2 . . 5 5 Average Corruption 3 | . 2 . . 3 5 Corruption Purged . | . . . . . . Corruption Blocked . | . . . . . . Effects 17 | . . . . 11 6 Message Errors 4 | . . . . 2 2 Matter Fused 4 | . . . . 3 1 Heat Flow Errors 1 | . . . . 1 . Energy Discharges 3 | . . . . 1 2 Data Loss (minor) 2 | . . . . 2 . Data Loss (major) 1 | . . . . 1 . Misfires 1 | . . . . 1 . Alerts 1 | . . . . . 1 Overload Shots . | . . . . . . Overflow Damage 26 | . . . 3 23 . Projectiles 3 | . . . 3 . . Explosions 23 | . . . . 23 . Melee . | . . . . . . Knockbacks 11 | . . . 2 9 . Impact . | . . . . . . Kinetic 11 | . . . 2 9 . Secondary . | . . . . . . Self-Inflicted Damage 137 | . . . . 137 . Shots 4 | . . . . 4 . Rammed 8 | . 1 . . 7 . Targets Rammed 21 | . 1 . . 7 13 Kicked 13 | . . . . . 13 Crushed . | . . . . . . Highest Temperature 510 | . 12 . . 510 . Average Temperature 151 | . 9 . . 157 . Received Heat Transfer 1545 | . 30 147 36 1062 270 Effects 4 | . . . . 4 . Shutdowns 2 | . . . . 2 . Matter Decay 1 | . . . . 1 . Short Circuit 1 | . . . . 1 . Siege Activations . | . . . . . . Martial Activations . | . . . . . . Shielding Activations . | . . . . . . Robots Disrupted . | . . . . . . Combat Hostiles . | . . . . . . Robots Corrupted . | . . . . . . Combat Hostiles . | . . . . . . Parts Fried . | . . . . . . Impact Corruptions . | . . . . . . Robots Melted . | . . . . . . Combat Hostiles . | . . . . . . Parts Melted . | . . . . . . Heat Transferred 505 | . . . . 505 . Parts Sabotaged . | . . . . . . Parts Stolen . | . . . . . . Parts Stripped . | . . . . . . Power Chain Reactions . | . . . . . . Alert | -11 -10 -9 -9 -8 -8 ------- Run | Yrd Mat Mat Min Mat Sto Maximum Alert Level . | . . . . . . Low Security (%) 100 | 100 100 100 100 100 100 Level 1 . | . . . . . . Level 2 . | . . . . . . Level 3 . | . . . . . . Level 4 . | . . . . . . Level 5 . | . . . . . . High Security . | . . . . . . Max Security . | . . . . . . Peak Influence 173 | . 40 173 84 79 20 Initial 64 | . . . 64 . 20 Average 26 | . 4 49 20 29 4 Influence Increases 1039 | . 50 408 120 461 . Destroy 0b10 Robot/C 700 | . 40 240 100 320 . Destroy 0b10 Robot/NC 15 | . . 10 . 5 . Destroy Leader 182 | . 10 82 20 70 . Disable Machine 15 | . . 15 . . . Destroy Structure 52 | . . 1 . 51 . Lose Combat Pursuer 75 | . . 60 . 15 . Influence Decreases 1039 | . 50 243 285 412 49 Entered New Map 130 | . . . 101 . 29 Time Decay 742 | . 50 233 184 255 20 Lost Part 167 | . . 10 . 157 . Squads Dispatched 5 | . 1 3 . 1 . Investigation 1 | . . 1 . . . Extermination . | . . . . . . Reinforcement 4 | . 1 2 . 1 . Assault . | . . . . . . Garrison . | . . . . . . Intercept . | . . . . . . Searches Triggered . | . . . . . . Construction Impeded . | . . . . . . Haulers Reinforced . | . . . . . . Active Scanning Responses . | . . . . . . Cargo Convoy Interrupts . | . . . . . . Stealth | -11 -10 -9 -9 -8 -8 --------- Run | Yrd Mat Mat Min Mat Sto Distress Signals 4 | . 2 1 . . 1 Communications Jammed . | . . . . . . Distress Signals . | . . . . . . Times Spotted 56 | . 7 20 5 17 7 Peak Tracking Total 7 | . 2 5 3 5 7 Tactical Retreats 2 | . . 1 . 1 . Traps | -11 -10 -9 -9 -8 -8 ------- Run | Yrd Mat Mat Min Mat Sto Traps Triggered 6 | . 4 1 . 1 . Indirectly . | . . . . . . Trap Hack Attempts . | . . . . . . Triggered . | . . . . . . Disarmed . | . . . . . . Reprogrammed . | . . . . . . Reused . | . . . . . . Traps Extracted . | . . . . . . Installed . | . . . . . . Triggered . | . . . . . . Machines | -11 -10 -9 -9 -8 -8 ---------- Run | Yrd Mat Mat Min Mat Sto Machines Disabled 1 | . . 1 . . . Max in Single Turn 1 | . . 1 . . . Machines Repaired . | . . . . . . Machines Dismantled . | . . . . . . Machines Sabotaged . | . . . . . . Overloaded Fab Kills . | . . . . . . Hacking | -11 -10 -9 -9 -8 -8 --------- Run | Yrd Mat Mat Min Mat Sto Machines Accessed 6 | . . 5 . 1 . Terminals 4 | . . 3 . 1 . Fabricators . | . . . . . . Repair Stations 1 | . . 1 . . . Recycling Units . | . . . . . . Scanalyzers 1 | . . 1 . . . Garrison Access . | . . . . . . Total Hacks 21 | . . 17 . 4 . Successful 17 | . . 13 . 4 . Failed 4 | . . 4 . . . Catastrophic . | . . . . . . Database Lockouts . | . . . . . . Manual 2 | . . 2 . . . Terminals 14 | . . 10 . 4 . Fabricators . | . . . . . . Repair Stations 5 | . . 5 . . . Recycling Units . | . . . . . . Scanalyzers 2 | . . 2 . . . Garrison Access . | . . . . . . Terminal Hacks 11 | . . 7 . 4 . Record 8 | . . 5 . 3 . Alert Level 2 | . . 1 . 1 . Maintenance Status 1 | . . 1 . . . Fabricator Hacks . | . . . . . . Repair Station Hacks 4 | . . 4 . . . Scan Component 2 | . . 2 . . . Repair 2 | . . 2 . . . Recycling Unit Hacks . | . . . . . . Scanalyzer 2 | . . 2 . . . Insert Component 1 | . . 1 . . . Analyze 1 | . . 1 . . . Garrison Access Hacks . | . . . . . . Unauthorized Hacks . | . . . . . . Terminals . | . . . . . . Fabricators . | . . . . . . Repair Stations . | . . . . . . Recycling Units . | . . . . . . Scanalyzers . | . . . . . . Garrison Access . | . . . . . . Data Cores Recovered 1 | . . 1 . . . Used 1 | . . 1 . . . Hacking Detections 5 | . . 5 . . . Full Trace Events 3 | . . 3 . . . Feedback Events . | . . . . . . Feedback Blocked . | . . . . . . Robot Schematics Acquired . | . . . . . . Robots Built . | . . . . . . Authchips . | . . . . . . Time . | . . . . . . Total Robot Build Rating . | . . . . . . Part Schematics Acquired 1 | . . 1 . . . Parts Built . | . . . . . . Authchips . | . . . . . . Time . | . . . . . . Total Part Build Rating . | . . . . . . Parts Repaired 2 | . . 2 . . . Time 52 | . . 52 . . . Parts Recycled . | . . . . . . Recycled Matter . | . . . . . . Retrieved Matter . | . . . . . . Retrieved Components . | . . . . . . Parts Scanalyzed 1 | . . 1 . . . Part Schematics Acquired 1 | . . 1 . . . Parts Damaged . | . . . . . . Bothacking | -11 -10 -9 -9 -8 -8 ------------ Run | Yrd Mat Mat Min Mat Sto Used RIF Installer . | . . . . . . Robots Hacked . | . . . . . . Non-combat . | . . . . . . Combat . | . . . . . . Robot Hacks Applied . | . . . . . . Relay Couplers Released . | . . . . . . Fabnet Peak Effective % . | . . . . . . Robots Rewired . | . . . . . . Allies Hacked . | . . . . . . Hacks Repelled . | . . . . . . Allies | -11 -10 -9 -9 -8 -8 -------- Run | Yrd Mat Mat Min Mat Sto Total Allies . | . . . . . . Largest Group . | . . . . . . Highest-Rated Group . | . . . . . . Highest-Rated Ally . | . . . . . . Total Orders . | . . . . . . Ally Attacks . | . . . . . . Total Damage . | . . . . . . Kills . | . . . . . . Allies Corrupted . | . . . . . . Allies Melted . | . . . . . . Intel | -11 -10 -9 -9 -8 -8 ------- Run | Yrd Mat Mat Min Mat Sto Active Infowar (turns) . | . . . . . . Robot Analysis Total . | . . . . . . Derelict Logs Recovered 1 | . . . 1 . . Drone Launches . | . . . . . . Drone Recoveries . | . . . . . . Exploration | -11 -10 -9 -9 -8 -8 ------------- Run | Yrd Mat Mat Min Mat Sto Turns Passed 2778 | 57 383 605 781 814 138 Spaces Moved 1340 | 35 211 279 455 302 58 Core 27 | 11 11 . . 5 . Treads 1225 | 24 200 279 455 267 . Legs 88 | . . . . 30 58 Wheels . | . . . . . . Hover . | . . . . . . Flight . | . . . . . . Fastest Speed 50 | 50 100 160 160 160 190 Average Speed 166 | 125 156 164 160 184 190 Slowest Speed 450 | 160 160 240 160 450 190 Overloaded Moves . | . . . . . . Propulsion Burnouts . | . . . . . . Robots Hopped . | . . . . . . Potential Cave-ins . | . . . . . . Cave-ins Triggered . | . . . . . . Exploration Rate (%) 28 | 4 28 27 92 15 7 Regions Visited 5 Branch Regions 2 Pre-discovered Areas 2 | . . . 2 . . Known Exits Taken . | . . . . . . Unknown Exits Taken 5 | 1 1 1 1 1 . Scrap Searched 2 | . . . 2 . . Spaces Dug . | . . . . . . Terrain Destroyed 83 | . . . . 83 . Melee . | . . . . . . Projectile 6 | . . . . 6 . AOE 77 | . . . . 77 . Terrain Rammed . | . . . . . . Walls Destroyed . | . . . . . . Machines Disabled . | . . . . . . Actions | -11 -10 -9 -9 -8 -8 --------- Run | Yrd Mat Mat Min Mat Sto Total 1654 | 48 248 364 479 441 74 Wait 64 | . 10 18 10 23 3 Move 1335 | 34 210 278 454 301 58 Hop . | . . . . . . Pick Up 55 | 8 12 17 2 16 . Fast Attach . | . . . . . . Attach 45 | 6 6 6 . 27 . Detach 6 | . . 1 . 5 . Swap 2 | . 1 1 . . . Drop 12 | . . 8 . 4 . Fire 113 | . 8 34 13 58 . Melee . | . . . . . . Ram . | . . . . . . Kick 13 | . . . . . 13 Crush 8 | . 1 . . 7 . Escape Stasis . | . . . . . . Rewire 1 | . . 1 . . . Trap . | . . . . . . Miscellaneous . | . . . . . . Route ------- -11/Scrapyard -10/Materials -9/Materials -9/Mines (discovered 2 exits: *Mat x2) -8/Materials -8/Storage History --------- Turn | Location | Event 5 | -11/Scrapyard | Discovered new exit (range 16) 58 | -11/Scrapyard | Entered Materials 306 | -10/Materials | Build established: Mutant 350 | -10/Materials | Discovered new exit (range 9) 441 | -10/Materials | Entered another Materials area 441 | -9/Materials | Evolved 2 slots: Utility x1, Weapon x1 727 | -9/Materials | Repaired Assault Rifle 753 | -9/Materials | Repaired Lgt. Treads 1018 | -9/Materials | Discovered new exit (range 6) 1046 | -9/Materials | Entered Mines 1207 | -9/Mines | A weapon hastily lodged in a ceiling crevice suddenly fell to the ground 1323 | -9/Mines | Build established: Gunner 1366 | -9/Mines | Discovered new exit (range 5) 1408 | -9/Mines | Learned location of Storage (-8) 1738 | -9/Mines | Discovered new exit (range 12) 1827 | -9/Mines | Entered Materials 1827 | -8/Materials | Evolved 2 slots: Power x1, Propulsion x1 1984 | -8/Materials | Lost 3 parts (1n1u1w) 1985 | -8/Materials | Discovered new exit (range 12) 2098 | -8/Materials | Lost 7 parts (2p3n1u1w) 2335 | -8/Materials | Lost 3 parts (1p2w) 2379 | -8/Materials | Core integrity fell below 50% 2414 | -8/Materials | Lost 4 parts (1p2n1u) 2553 | -8/Materials | Core integrity fell below 20% 2641 | -8/Materials | Entered Storage 2779 | -8/Storage | Destroyed by G-47 Trooper with Particle Gun Last Messages --------------- 02721_ C-30 ARC bursts open, deploying its payload. 02721_ G-50 Soldier unfolds itself. 02721_ G-47 Trooper unfolds itself. 02742_ System corrupted: Energy discharge (-79). 02749_ Datajack destroyed. 02755_ Kicked G-47 Trooper out of the way. 02757_ Kicked G-47 Trooper. 02758_ System corrupted: Energy discharge (-55). 02758_ Kicked G-47 Trooper out of the way. 02762_ Kicked G-47 Trooper. 02763_ Imp. Ion Engine destroyed. 02764_ Kicked G-47 Trooper out of the way. 02766_ Kicked G-47 Trooper. 02768_ Critical hit (Burn: +37). 02770_ Kicked G-47 Trooper out of the way. 02771_ Critical hit (Burn: +37). 02772_ Kicked G-47 Trooper. 02777_ Aluminum Leg destroyed. 02777_ Kicked G-47 Trooper. Map ----- +----------------------------------------------------+ | ???????????????????????????????????????? | | ?????????????????????????????????? ??? | | ?????????????????????????????????# " ??? | | ?????????????????????????????????# %"??? | | ?????????????????????????????????/ " #?? | | ?????????????????????????????????# #?? | | ?????????????????????????????????# #?? | | ?????????????????????????????????# #?? | | ?????????????????????????????????# #?? | | ?????????????????????????????????# #?? | | ?????????????????????????????????# #?? | | ?????????????????????????????????# #?? | | ?????????????????????????????????# #?? | | ?????????????????????????????????# #?? | | ?????????????????????????????????# #?? | | ?????????????????????????????????# #?? | | ?????????????????????????????????# #?? | | ???????????????????????########### #?? | | ????????????????# #### / #?? | | ????????? / """ # #?? | | ????????? #### """"?" # #?? | | ???????????????????????# "????" + #?? | | ???????????????????????# "????" # #?? | | ???????????????????????#g"?"""" # #?? | | ???????????????????????#g""" # #?? | | ???????????????????????# @g # #?? | | ???????????????????????########### #?? | | ?????????????????????????????????#####?? | | ???????????????????????????????????????? | | ???????????????????????????????????????? | | ???????????????????????????????????????? | | ???????????????????????????????????????? | | ???????????????????????????????????????? | | ???????????????????????????????????????? | | ???????????????????????????????????????? | | ???????????????????????????????????????? | | ???????????????????????????????????????? | | ???????????????????????????????????????? | | ???????????????????????????????????????? | | | | | | | | | | | | | | | | | | | | | | | +----------------------------------------------------+ Best States ------------- Heat Dissipation 53 Energy Generation 19 Energy Capacity 275 Matter Stores 300 Matter Capacity 300 Sight Range 16 Terrain Scan Density 10 Armor Coverage 150 Core Shielding 20 Propulsion Shielding 33 Evasion (%) 50 Recoil Reduction 3 Offensive Hacking 10 Item Schematics ----------------- Cld. Ion Engine | -9/Materials | Scanalyzed Robot Schematics ------------------ None Fabricated ------------ Nothing Repaired ---------- Lgt. Treads | 37% | -9/Materials Alien Tech Used ----------------- None Achievements -------------- Dynamic Key Challenges ------------ None Game ------ Seed CombatAssaultRedistributor Manual? 0 Play Time 00:19:48 Cumulative 7.7 hours Start 2025.06.18 @ 17:47:52 End 2025.06.18 @ 18:07:01 Sessions 1 Manual Loads 0 Difficulty Rogue Special Mode None Game No. 22 Rogue 11 Adventurer 11 Explorer 0 Win Type - Total 0 Types 0/0/0/0/0/0/0/0/0/0 Lore% 2 Gallery% 15 Achievement% 14 Wizard Run 0 Options --------- Layout 1 ASCII 0 Keyboard 1 Movement Vi Keybinds 0 Fullscreen 1 Font 24/Smallcaps Map View 50x35 Zoom Use 0% Tactical HUD 1 Map Filters NONE Filters NONE Steam 1 RUN: 72e62660-24d8-4a0b-a923-7ab4d406eb47